{"text_format":"3","workbook":"xlsx","n_sheets":1,"sheets":["Pere kuueelarve"],"not_rendered":{"defined_names":1},"read":"whole","date_system":"1900"}

{"sheet":"Pere kuueelarve","index":0,"n_rows":68,"n_cols":9,"rows_kept":68,"merged":[[0,0,0,6],[2,0,2,1],[2,5,2,6],[8,5,8,6],[18,0,18,3],[27,5,27,8],[29,0,29,3],[36,0,36,3],[37,5,37,8],[42,0,42,3],[44,5,44,8],[54,0,54,3],[54,5,54,8],[61,0,61,3],[62,5,62,8]]}
["Pere kuueelarve"]
[]
["Kavandatud kulud kokku",null,"Tegelikud kulud kokku","Vahe",null,"Kavandatud kuusissetulek"]
[null,{"$f":"Majapidamine[[#Totals],[Kavandatud kulud]]+Transport[[#Totals],[Kavandatud kulud]]+Kindlustus[[#Totals],[Kavandatud kulud]]+Toit[[#Totals],[Kavandatud kulud]]+Lapsed[[#Totals],[Kavandatud kulud]]+Juriidiline[[#Totals],[Kavandatud kulud]]+Säästud[[#Totals],[Kavandatud kulud]]+Laenud[[#Totals],[Kavandatud kulud]]+Meelelahutus[[#Totals],[Kavandatud kulud]]+Maksud[[#Totals],[Kavandatud kulud]]+Isiklik_heaolu[[#Totals],[Kavandatud kulud]]+Lemmikloomad[[#Totals],[Kavandatud kulud]]+Kingitused[[#Totals],[Kavandatud kulud]]","v":{"v":1203,"d":"1,203.00 kr"}},{"$f":"Majapidamine[[#Totals],[Tegelikud kulud]]+Transport[[#Totals],[Tegelikud kulud]]+Kindlustus[[#Totals],[Tegelikud kulud]]+Toit[[#Totals],[Tegelikud kulud]]+Lapsed[[#Totals],[Tegelikud kulud]]+Juriidiline[[#Totals],[Tegelikud kulud]]+Säästud[[#Totals],[Tegelikud kulud]]+Laenud[[#Totals],[Tegelikud kulud]]+Meelelahutus[[#Totals],[Tegelikud kulud]]+Maksud[[#Totals],[Tegelikud kulud]]+Isiklik_heaolu[[#Totals],[Tegelikud kulud]]+Lemmikloomad[[#Totals],[Tegelikud kulud]]+Kingitused[[#Totals],[Tegelikud kulud]]","v":{"v":1317,"d":"1,317.00 kr"}},{"$f":"Majapidamine[[#Totals],[Vahe]]+Transport[[#Totals],[Vahe]]+Kindlustus[[#Totals],[Vahe]]+Toit[[#Totals],[Vahe]]+Lapsed[[#Totals],[Vahe]]+Juriidiline[[#Totals],[Vahe]]+Säästud[[#Totals],[Vahe]]+Laenud[[#Totals],[Vahe]]+Meelelahutus[[#Totals],[Vahe]]+Maksud[[#Totals],[Vahe]]+Isiklik_heaolu[[#Totals],[Vahe]]+Lemmikloomad[[#Totals],[Vahe]]+Kingitused[[#Totals],[Vahe]]","v":{"v":-114,"d":"-114.00 kr"}},null,"Sissetulek 1",{"v":4000,"d":"4,000.00 kr"}]
[{"$nulls":5},"Sissetulek 2",{"v":1200,"d":"1,200.00 kr"}]
["Majapidamine","Kavandatud kulud","Tegelikud kulud","Vahe",null,"Lisasissetulek",{"v":300,"d":"300.00 kr"}]
["Hüpoteek või rent",{"v":1000,"d":"1,000.00 kr"},{"v":1000,"d":"1,000.00 kr"},{"$f":"Majapidamine[Kavandatud kulud]-Majapidamine[Tegelikud kulud]","v":{"v":0,"d":"0.00 kr"}},null,"Kuusissetulek kokku",{"$f":"SUM(G4:G6)","v":{"v":5500,"d":"5,500.00 kr"}}]
["Teine hüpoteek või rent",{"v":0,"d":"0.00 kr"},{"v":0,"d":"0.00 kr"},{"$f":"Majapidamine[Kavandatud kulud]-Majapidamine[Tegelikud kulud]","v":{"v":0,"d":"0.00 kr"}}]
["Telefon",{"v":62,"d":"62.00 kr"},{"v":100,"d":"100.00 kr"},{"$f":"Majapidamine[Kavandatud kulud]-Majapidamine[Tegelikud kulud]","v":{"v":-38,"d":"-38.00 kr"}},null,"Tegelik kuusissetulek"]
["Elekter",{"v":44,"d":"44.00 kr"},{"v":125,"d":"125.00 kr"},{"$f":"Majapidamine[Kavandatud kulud]-Majapidamine[Tegelikud kulud]","v":{"v":-81,"d":"-81.00 kr"}},null,"Sissetulek 1",{"v":4000,"d":"4,000.00 kr"}]
["Gaas",{"v":22,"d":"22.00 kr"},{"v":35,"d":"35.00 kr"},{"$f":"Majapidamine[Kavandatud kulud]-Majapidamine[Tegelikud kulud]","v":{"v":-13,"d":"-13.00 kr"}},null,"Sissetulek 2",{"v":1200,"d":"1,200.00 kr"}]
["Vesi ja kanalisatsioon",{"v":8,"d":"8.00 kr"},{"v":8,"d":"8.00 kr"},{"$f":"Majapidamine[Kavandatud kulud]-Majapidamine[Tegelikud kulud]","v":{"v":0,"d":"0.00 kr"}},null,"Lisasissetulek",{"v":300,"d":"300.00 kr"}]
["Kaabeltelevisioon",{"v":34,"d":"34.00 kr"},{"v":39,"d":"39.00 kr"},{"$f":"Majapidamine[Kavandatud kulud]-Majapidamine[Tegelikud kulud]","v":{"v":-5,"d":"-5.00 kr"}},null,"Kuusissetulek kokku",{"$f":"SUM(G10:G12)","v":{"v":5500,"d":"5,500.00 kr"}}]
["Prügivedu",{"v":10,"d":"10.00 kr"},{"v":10,"d":"10.00 kr"},{"$f":"Majapidamine[Kavandatud kulud]-Majapidamine[Tegelikud kulud]","v":{"v":0,"d":"0.00 kr"}}]
["Hooldus või remont",{"v":23,"d":"23.00 kr"},{"v":0,"d":"0.00 kr"},{"$f":"Majapidamine[Kavandatud kulud]-Majapidamine[Tegelikud kulud]","v":{"v":23,"d":"23.00 kr"}},null,"Kavandatud saldo\n",{"$f":"SUM(G7-B4)","v":{"v":4297,"d":"4,297.00 kr"}}]
["Vahendid",{"v":0,"d":"0.00 kr"},{"v":0,"d":"0.00 kr"},{"$f":"Majapidamine[Kavandatud kulud]-Majapidamine[Tegelikud kulud]","v":{"v":0,"d":"0.00 kr"}},null,"Tegelik saldo",{"$f":"SUM(G13-C4)","v":{"v":4183,"d":"4,183.00 kr"}}]
["Muu",{"v":0,"d":"0.00 kr"},{"v":0,"d":"0.00 kr"},{"$f":"Majapidamine[Kavandatud kulud]-Majapidamine[Tegelikud kulud]","v":{"v":0,"d":"0.00 kr"}},null,"Vahe",{"$f":"SUM(G16-G15)","v":{"v":-114,"d":"-114.00 kr"}}]
["Kokku",{"$f":"SUBTOTAL(109,Majapidamine[Kavandatud kulud])","v":{"v":1203,"d":"1,203.00 kr"}},{"$f":"SUBTOTAL(109,Majapidamine[Tegelikud kulud])","v":{"v":1317,"d":"1,317.00 kr"}},{"$f":"SUBTOTAL(109,Majapidamine[Vahe])","v":{"v":-114,"d":"-114.00 kr"}}]
[]
["Transport","Kavandatud kulud","Tegelikud kulud","Vahe",null,"Laenud","Kavandatud kulud","Tegelikud kulud","Vahe"]
["1. auto makse",null,null,{"$f":"Transport[Kavandatud kulud]-Transport[Tegelikud kulud]","v":{"v":0,"d":"0.00 kr"}},null,"Isiklik",null,null,{"$f":"Laenud[Kavandatud kulud]-Laenud[Tegelikud kulud]","v":{"v":0,"d":"0.00 kr"}}]
["2. auto makse",null,null,{"$f":"Transport[Kavandatud kulud]-Transport[Tegelikud kulud]","v":{"v":0,"d":"0.00 kr"}},null,"Õppelaen",null,null,{"$f":"Laenud[Kavandatud kulud]-Laenud[Tegelikud kulud]","v":{"v":0,"d":"0.00 kr"}}]
["Buss/takso",null,null,{"$f":"Transport[Kavandatud kulud]-Transport[Tegelikud kulud]","v":{"v":0,"d":"0.00 kr"}},null,"Krediitkaart",null,null,{"$f":"Laenud[Kavandatud kulud]-Laenud[Tegelikud kulud]","v":{"v":0,"d":"0.00 kr"}}]
["Kindlustus",null,null,{"$f":"Transport[Kavandatud kulud]-Transport[Tegelikud kulud]","v":{"v":0,"d":"0.00 kr"}},null,"Krediitkaart",null,null,{"$f":"Laenud[Kavandatud kulud]-Laenud[Tegelikud kulud]","v":{"v":0,"d":"0.00 kr"}}]
["Load",null,null,{"$f":"Transport[Kavandatud kulud]-Transport[Tegelikud kulud]","v":{"v":0,"d":"0.00 kr"}},null,"Krediitkaart",null,null,{"$f":"Laenud[Kavandatud kulud]-Laenud[Tegelikud kulud]","v":{"v":0,"d":"0.00 kr"}}]
["Kütus",null,null,{"$f":"Transport[Kavandatud kulud]-Transport[Tegelikud kulud]","v":{"v":0,"d":"0.00 kr"}},null,"Muu",null,null,{"$f":"Laenud[Kavandatud kulud]-Laenud[Tegelikud kulud]","v":{"v":0,"d":"0.00 kr"}}]
["Hooldus",null,null,{"$f":"Transport[Kavandatud kulud]-Transport[Tegelikud kulud]","v":{"v":0,"d":"0.00 kr"}},null,"Kokku",{"$f":"SUBTOTAL(109,Laenud[Kavandatud kulud])","v":{"v":0,"d":"0.00 kr"}},{"$f":"SUBTOTAL(109,Laenud[Tegelikud kulud])","v":{"v":0,"d":"0.00 kr"}},{"$f":"SUBTOTAL(109,Laenud[Vahe])","v":{"v":0,"d":"0.00 kr"}}]
["Muu",null,null,{"$f":"Transport[Kavandatud kulud]-Transport[Tegelikud kulud]","v":{"v":0,"d":"0.00 kr"}}]
["Kokku",{"$f":"SUBTOTAL(109,Transport[Kavandatud kulud])","v":{"v":0,"d":"0.00 kr"}},{"$f":"SUBTOTAL(109,Transport[Tegelikud kulud])","v":{"v":0,"d":"0.00 kr"}},{"$f":"SUBTOTAL(109,Transport[Vahe])","v":{"v":0,"d":"0.00 kr"}},null,"Meelelahutus","Kavandatud kulud","Tegelikud kulud","Vahe"]
[{"$nulls":5},"Video/DVD",null,null,{"$f":"Meelelahutus[Kavandatud kulud]-Meelelahutus[Tegelikud kulud]","v":{"v":0,"d":"0.00 kr"}}]
["Kindlustus","Kavandatud kulud","Tegelikud kulud","Vahe",null,"CD-d",null,null,{"$f":"Meelelahutus[Kavandatud kulud]-Meelelahutus[Tegelikud kulud]","v":{"v":0,"d":"0.00 kr"}}]
["Kodu",null,null,{"$f":"Kindlustus[Kavandatud kulud]-Kindlustus[Tegelikud kulud]","v":{"v":0,"d":"0.00 kr"}},null,"Kino",null,null,{"$f":"Meelelahutus[Kavandatud kulud]-Meelelahutus[Tegelikud kulud]","v":{"v":0,"d":"0.00 kr"}}]
["Tervis",null,null,{"$f":"Kindlustus[Kavandatud kulud]-Kindlustus[Tegelikud kulud]","v":{"v":0,"d":"0.00 kr"}},null,"Kontserdid",null,null,{"$f":"Meelelahutus[Kavandatud kulud]-Meelelahutus[Tegelikud kulud]","v":{"v":0,"d":"0.00 kr"}}]
["Elu",null,null,{"$f":"Kindlustus[Kavandatud kulud]-Kindlustus[Tegelikud kulud]","v":{"v":0,"d":"0.00 kr"}},null,"Spordiüritused",null,null,{"$f":"Meelelahutus[Kavandatud kulud]-Meelelahutus[Tegelikud kulud]","v":{"v":0,"d":"0.00 kr"}}]
["Muu",null,null,{"$f":"Kindlustus[Kavandatud kulud]-Kindlustus[Tegelikud kulud]","v":{"v":0,"d":"0.00 kr"}},null,"Teater",null,null,{"$f":"Meelelahutus[Kavandatud kulud]-Meelelahutus[Tegelikud kulud]","v":{"v":0,"d":"0.00 kr"}}]
["Kokku",{"$f":"SUBTOTAL(109,Kindlustus[Kavandatud kulud])","v":{"v":0,"d":"0.00 kr"}},{"$f":"SUBTOTAL(109,Kindlustus[Tegelikud kulud])","v":{"v":0,"d":"0.00 kr"}},{"$f":"SUBTOTAL(109,Kindlustus[Vahe])","v":{"v":0,"d":"0.00 kr"}},null,"Muu",null,null,{"$f":"Meelelahutus[Kavandatud kulud]-Meelelahutus[Tegelikud kulud]","v":{"v":0,"d":"0.00 kr"}}]
[{"$nulls":5},"Kokku",{"$f":"SUBTOTAL(109,Meelelahutus[Kavandatud kulud])","v":{"v":0,"d":"0.00 kr"}},{"$f":"SUBTOTAL(109,Meelelahutus[Tegelikud kulud])","v":{"v":0,"d":"0.00 kr"}},{"$f":"SUBTOTAL(109,Meelelahutus[Vahe])","v":{"v":0,"d":"0.00 kr"}}]
["Toit","Kavandatud kulud","Tegelikud kulud","Vahe"]
["Toidukaubad",null,null,{"$f":"Toit[Kavandatud kulud]-Toit[Tegelikud kulud]","v":{"v":0,"d":"0.00 kr"}},null,"Maksud","Kavandatud kulud","Tegelikud kulud","Vahe"]
["Väljas einestamine",null,null,{"$f":"Toit[Kavandatud kulud]-Toit[Tegelikud kulud]","v":{"v":0,"d":"0.00 kr"}},null,"Riiklikud",null,null,{"$f":"Maksud[Kavandatud kulud]-Maksud[Tegelikud kulud]","v":{"v":0,"d":"0.00 kr"}}]
["Muu",null,null,{"$f":"Toit[Kavandatud kulud]-Toit[Tegelikud kulud]","v":{"v":0,"d":"0.00 kr"}},null,"Kohalikud",null,null,{"$f":"Maksud[Kavandatud kulud]-Maksud[Tegelikud kulud]","v":{"v":0,"d":"0.00 kr"}}]
["Kokku",{"$f":"SUBTOTAL(109,Toit[Kavandatud kulud])","v":{"v":0,"d":"0.00 kr"}},{"$f":"SUBTOTAL(109,Toit[Tegelikud kulud])","v":{"v":0,"d":"0.00 kr"}},{"$f":"SUBTOTAL(109,Toit[Vahe])","v":{"v":0,"d":"0.00 kr"}},null,"Muu",null,null,{"$f":"Maksud[Kavandatud kulud]-Maksud[Tegelikud kulud]","v":{"v":0,"d":"0.00 kr"}}]
[{"$nulls":5},"Muu",null,null,{"$f":"Maksud[Kavandatud kulud]-Maksud[Tegelikud kulud]","v":{"v":0,"d":"0.00 kr"}}]
["Lapsed","Kavandatud kulud","Tegelikud kulud","Vahe",null,"Kokku",{"$f":"SUBTOTAL(109,Maksud[Kavandatud kulud])","v":{"v":0,"d":"0.00 kr"}},{"$f":"SUBTOTAL(109,Maksud[Tegelikud kulud])","v":{"v":0,"d":"0.00 kr"}},{"$f":"SUBTOTAL(109,Maksud[Vahe])","v":{"v":0,"d":"0.00 kr"}}]
["Meditsiin",null,null,{"$f":"Lapsed[Kavandatud kulud]-Lapsed[Tegelikud kulud]","v":{"v":0,"d":"0.00 kr"}}]
["Rõivad",null,null,{"$f":"Lapsed[Kavandatud kulud]-Lapsed[Tegelikud kulud]","v":{"v":0,"d":"0.00 kr"}},null,"Isiklik heaolu","Kavandatud kulud","Tegelikud kulud","Vahe"]
["Õppemaks",null,null,{"$f":"Lapsed[Kavandatud kulud]-Lapsed[Tegelikud kulud]","v":{"v":0,"d":"0.00 kr"}},null,"Meditsiin",null,null,{"$f":"Isiklik_heaolu[Kavandatud kulud]-Isiklik_heaolu[Tegelikud kulud]","v":{"v":0,"d":"0.00 kr"}}]
["Koolitarbed",null,null,{"$f":"Lapsed[Kavandatud kulud]-Lapsed[Tegelikud kulud]","v":{"v":0,"d":"0.00 kr"}},null,"Juuksed/küüned",null,null,{"$f":"Isiklik_heaolu[Kavandatud kulud]-Isiklik_heaolu[Tegelikud kulud]","v":{"v":0,"d":"0.00 kr"}}]
["Liikmemaksud",null,null,{"$f":"Lapsed[Kavandatud kulud]-Lapsed[Tegelikud kulud]","v":{"v":0,"d":"0.00 kr"}},null,"Rõivad",null,null,{"$f":"Isiklik_heaolu[Kavandatud kulud]-Isiklik_heaolu[Tegelikud kulud]","v":{"v":0,"d":"0.00 kr"}}]
["Lõunasöögiraha",null,null,{"$f":"Lapsed[Kavandatud kulud]-Lapsed[Tegelikud kulud]","v":{"v":0,"d":"0.00 kr"}},null,"Keemiline puhastus",null,null,{"$f":"Isiklik_heaolu[Kavandatud kulud]-Isiklik_heaolu[Tegelikud kulud]","v":{"v":0,"d":"0.00 kr"}}]
["Lapsehoidja",null,null,{"$f":"Lapsed[Kavandatud kulud]-Lapsed[Tegelikud kulud]","v":{"v":0,"d":"0.00 kr"}},null,"Terviseklubi",null,null,{"$f":"Isiklik_heaolu[Kavandatud kulud]-Isiklik_heaolu[Tegelikud kulud]","v":{"v":0,"d":"0.00 kr"}}]
["Mänguasjad/mängud",null,null,{"$f":"Lapsed[Kavandatud kulud]-Lapsed[Tegelikud kulud]","v":{"v":0,"d":"0.00 kr"}},null,"Liikmemaksud",null,null,{"$f":"Isiklik_heaolu[Kavandatud kulud]-Isiklik_heaolu[Tegelikud kulud]","v":{"v":0,"d":"0.00 kr"}}]
["Muu",null,null,{"$f":"Lapsed[Kavandatud kulud]-Lapsed[Tegelikud kulud]","v":{"v":0,"d":"0.00 kr"}},null,"Muu",null,null,{"$f":"Isiklik_heaolu[Kavandatud kulud]-Isiklik_heaolu[Tegelikud kulud]","v":{"v":0,"d":"0.00 kr"}}]
["Kokku",{"$f":"SUBTOTAL(109,Lapsed[Kavandatud kulud])","v":{"v":0,"d":"0.00 kr"}},{"$f":"SUBTOTAL(109,Lapsed[Tegelikud kulud])","v":{"v":0,"d":"0.00 kr"}},{"$f":"SUBTOTAL(109,Lapsed[Vahe])","v":{"v":0,"d":"0.00 kr"}},null,"Kokku",{"$f":"SUBTOTAL(109,Isiklik_heaolu[Kavandatud kulud])","v":{"v":0,"d":"0.00 kr"}},{"$f":"SUBTOTAL(109,Isiklik_heaolu[Tegelikud kulud])","v":{"v":0,"d":"0.00 kr"}},{"$f":"SUBTOTAL(109,Isiklik_heaolu[Vahe])","v":{"v":0,"d":"0.00 kr"}}]
[]
["Juriidiline","Kavandatud kulud","Tegelikud kulud","Vahe",null,"Lemmikloomad","Kavandatud kulud","Tegelikud kulud","Vahe"]
["Advokaat",null,null,{"$f":"Juriidiline[Kavandatud kulud]-Juriidiline[Tegelikud kulud]","v":{"v":0,"d":"0.00 kr"}},null,"Toit",null,null,{"$f":"Lemmikloomad[Kavandatud kulud]-Lemmikloomad[Tegelikud kulud]","v":{"v":0,"d":"0.00 kr"}}]
["Alimendid",null,null,{"$f":"Juriidiline[Kavandatud kulud]-Juriidiline[Tegelikud kulud]","v":{"v":0,"d":"0.00 kr"}},null,"Meditsiin",null,null,{"$f":"Lemmikloomad[Kavandatud kulud]-Lemmikloomad[Tegelikud kulud]","v":{"v":0,"d":"0.00 kr"}}]
["Maksed",null,null,{"$f":"Juriidiline[Kavandatud kulud]-Juriidiline[Tegelikud kulud]","v":{"v":0,"d":"0.00 kr"}},null,"Hooldus",null,null,{"$f":"Lemmikloomad[Kavandatud kulud]-Lemmikloomad[Tegelikud kulud]","v":{"v":0,"d":"0.00 kr"}}]
["Muu",null,null,{"$f":"Juriidiline[Kavandatud kulud]-Juriidiline[Tegelikud kulud]","v":{"v":0,"d":"0.00 kr"}},null,"Mänguasjad",null,null,{"$f":"Lemmikloomad[Kavandatud kulud]-Lemmikloomad[Tegelikud kulud]","v":{"v":0,"d":"0.00 kr"}}]
["Kokku",{"$f":"SUBTOTAL(109,Juriidiline[Kavandatud kulud])","v":{"v":0,"d":"0.00 kr"}},{"$f":"SUBTOTAL(109,Juriidiline[Tegelikud kulud])","v":{"v":0,"d":"0.00 kr"}},{"$f":"SUBTOTAL(109,Juriidiline[Vahe])","v":{"v":0,"d":"0.00 kr"}},null,"Muu",null,null,{"$f":"Lemmikloomad[Kavandatud kulud]-Lemmikloomad[Tegelikud kulud]","v":{"v":0,"d":"0.00 kr"}}]
[{"$nulls":5},"Kokku",{"$f":"SUBTOTAL(109,Lemmikloomad[Kavandatud kulud])","v":{"v":0,"d":"0.00 kr"}},{"$f":"SUBTOTAL(109,Lemmikloomad[Tegelikud kulud])","v":{"v":0,"d":"0.00 kr"}},{"$f":"SUBTOTAL(109,Lemmikloomad[Vahe])","v":{"v":0,"d":"0.00 kr"}}]
["Säästud/investeeringud","Kavandatud kulud","Tegelikud kulud","Vahe"]
["Kogumispension",null,null,{"$f":"Säästud[Kavandatud kulud]-Säästud[Tegelikud kulud]","v":{"v":0,"d":"0.00 kr"}},null,"Kingitused ja annetused","Kavandatud kulud","Tegelikud kulud","Vahe"]
["Investeerimiskonto",null,null,{"$f":"Säästud[Kavandatud kulud]-Säästud[Tegelikud kulud]","v":{"v":0,"d":"0.00 kr"}},null,"Heategevus 1",null,null,{"$f":"Kingitused[Kavandatud kulud]-Kingitused[Tegelikud kulud]","v":{"v":0,"d":"0.00 kr"}}]
["Kõrgkool",null,null,{"$f":"Säästud[Kavandatud kulud]-Säästud[Tegelikud kulud]","v":{"v":0,"d":"0.00 kr"}},null,"Heategevus 2",null,null,{"$f":"Kingitused[Kavandatud kulud]-Kingitused[Tegelikud kulud]","v":{"v":0,"d":"0.00 kr"}}]
["Muu",null,null,{"$f":"Säästud[Kavandatud kulud]-Säästud[Tegelikud kulud]","v":{"v":0,"d":"0.00 kr"}},null,"Heategevus 3",null,null,{"$f":"Kingitused[Kavandatud kulud]-Kingitused[Tegelikud kulud]","v":{"v":0,"d":"0.00 kr"}}]
["Kokku",{"$f":"SUBTOTAL(109,Säästud[Kavandatud kulud])","v":{"v":0,"d":"0.00 kr"}},{"$f":"SUBTOTAL(109,Säästud[Tegelikud kulud])","v":{"v":0,"d":"0.00 kr"}},{"$f":"SUBTOTAL(109,Säästud[Vahe])","v":{"v":0,"d":"0.00 kr"}},null,"Kokku",{"$f":"SUBTOTAL(109,Kingitused[Kavandatud kulud])","v":{"v":0,"d":"0.00 kr"}},{"$f":"SUBTOTAL(109,Kingitused[Tegelikud kulud])","v":{"v":0,"d":"0.00 kr"}},{"$f":"SUBTOTAL(109,Kingitused[Vahe])","v":{"v":0,"d":"0.00 kr"}}]